bitfinex/quotes_SOLUSD_20240818
["timestamp","ask_amount","ask_price","bid_price","bid_amount"]
[1724010442298,7.09275606,146.69,146.62,8.77]
[1724010442491,7.46977764,146.68,146.62,8.77]
[1724010442698,7.46977764,146.67,146.62,8.77]
[1724010442888,7.46977764,146.66,146.62,8.77]
[1724010443093,13.90985606,146.69,146.59,6.6271]
[1724010443408,13.90985606,146.69,146.61,8.77]
[1724010443409,52.4705681,146.68,146.61,8.77]
[1724010443575,7.4705681,146.67,146.61,8.77]
[1724010443776,7.4705681,146.66,146.61,8.77]
[1724010443974,7.4705681,146.65,146.61,8.77]
[1724010444174,45.0,146.68,146.61,8.77]
[1724010444396,7.47032275,146.67,146.61,8.77]
[1724010444595,7.47032275,146.66,146.61,8.77]
[1724010444905,45.0,146.68,146.6,21.36402993]
[1724010444906,7.09275606,146.69,146.63,8.77]
[1724010445190,7.46970742,146.68,146.63,8.77]
[1724010445406,7.46970742,146.67,146.63,8.77]
[1724010445694,7.09275606,146.69,146.63,8.77]
[1724010445894,7.46927022,146.68,146.63,8.77]
[1724010446101,7.46927022,146.67,146.63,8.77]
[1724010446300,7.09275606,146.69,146.63,8.77]
[1724010446496,7.46922612,146.68,146.65,8.77]
[1724010446684,7.46922612,146.67,146.65,8.77]
[1724010446886,7.09275606,146.69,146.65,8.77]
[1724010447078,7.46916125,146.68,146.65,8.77]
[1724010447381,7.46916125,146.67,146.65,8.77]
[1724010447582,7.09275606,146.69,146.65,8.77]
[1724010447790,7.46920143,146.68,146.65,8.77]
[1724010447980,7.46920143,146.67,146.65,8.77]
[1724010448174,7.09275606,146.69,146.65,8.77]
[1724010448377,7.46920143,146.68,146.65,8.77]
[1724010448672,7.46920143,146.67,146.65,8.77]
[1724010448872,7.09275606,146.69,146.65,8.77]
[1724010449077,7.46915285,146.68,146.65,8.77]
[1724010449273,7.46915285,146.67,146.65,8.77]
[1724010449473,7.09275606,146.69,146.65,8.77]
[1724010449703,7.469153,146.68,146.65,8.77]
[1724010449878,7.469153,146.67,146.65,8.77]
[1724010450080,7.09275606,146.69,146.65,8.77]
[1724010450391,7.469153,146.68,146.65,8.77]
[1724010450583,7.469153,146.67,146.65,8.77]
[1724010450779,7.09275606,146.69,146.65,8.77]
[1724010450978,7.46923148,146.68,146.65,8.77]
[1724010451179,7.46923148,146.67,146.65,8.77]
[1724010451380,7.46923148,146.66,146.65,8.77]
[1724010451693,7.46923148,146.68,146.65,8.77]
[1724010451895,7.46923148,146.67,146.65,8.77]
[1724010452210,7.46923148,146.66,146.65,8.77]
[1724010452385,7.46923148,146.68,146.65,8.77]
[1724010452586,7.46923148,146.67,146.65,8.77]
[1724010452795,7.46923148,146.66,146.65,8.77]
[1724010453482,7.46922798,146.66,146.65,8.77]
[1724010453684,7.09275606,146.69,146.65,8.77]
[1724010453993,7.46919137,146.68,146.65,8.77]
[1724010454202,7.46919137,146.67,146.65,8.77]
[1724010454505,7.09275606,146.69,146.65,8.77]
[1724010454687,7.4691971,146.68,146.65,8.77]
[1724010454889,7.4691971,146.67,146.65,8.77]
[1724010455098,7.09275606,146.69,146.65,8.77]
[1724010455410,7.4691971,146.68,146.65,8.77]
[1724010455596,7.4691971,146.67,146.65,8.77]
[1724010455795,7.4691971,146.66,146.65,10.13367436]
[1724010456007,7.09275606,146.69,146.65,8.77]
[1724010456507,7.46919709,146.68,146.65,8.77]
[1724010456718,7.46919709,146.67,146.65,8.77]
[1724010456886,7.46919709,146.66,146.65,8.77]
[1724010464926,7.09275606,146.69,146.65,8.77]
[1724010465097,7.46923371,146.68,146.65,8.77]
[1724010465296,7.09275606,146.69,146.65,8.77]
[1724010465297,7.46923371,146.67,146.65,8.77]
[1724010465594,7.46923371,146.66,146.65,8.77]
[1724010466219,7.09275606,146.69,146.65,8.77]
[1724010466517,7.46915794,146.68,146.6,35.765]
[1724010466689,7.46915794,146.67,146.6,15.765]
[1724010466925,22.27795606,146.69,146.6,24.535]
[1724010467121,52.46988666,146.68,146.6,24.535]
[1724010467417,7.46988666,146.67,146.6,24.535]
[1724010467633,7.46988666,146.66,146.6,24.535]
[1724010467826,7.46988666,146.65,146.6,24.535]
[1724010468006,7.46988666,146.64,146.6,24.535]
[1724010468319,51.8176,146.68,146.6,24.535]
[1724010468320,7.46988666,146.63,146.6,24.535]
[1724010468626,7.46988666,146.62,146.6,24.535]
[1724010468792,58.90508922,146.68,146.6,24.535]
[1724010468992,7.47105931,146.67,146.6,24.535]
[1724010469193,7.47105931,146.66,146.6,24.535]
[1724010469420,7.47105931,146.65,146.6,24.535]
[1724010469629,7.47105931,146.64,146.6,24.535]
[1724010469796,7.47105931,146.63,146.6,24.535]
[1724010469996,7.47105931,146.62,146.6,24.535]
[1724010470195,58.90508922,146.68,146.6,24.535]
[1724010470418,7.47096294,146.67,146.6,24.535]
[1724010470723,7.47096294,146.66,146.6,24.535]
[1724010471028,7.47096294,146.65,146.6,24.535]
[1724010471329,7.47096294,146.64,146.6,24.535]
[1724010471526,7.47096294,146.63,146.6,24.535]
[1724010471718,7.47096294,146.62,146.6,24.535]
[1724010471920,58.90508922,146.68,146.6,24.535]
[1724010472119,7.47094953,146.67,146.6,24.535]
[1724010472422,7.47094953,146.66,146.6,24.535]
[1724010472615,7.47094953,146.65,146.6,24.535]
[1724010472813,7.47094953,146.64,146.62,8.77]
[1724010473014,58.90508922,146.68,146.62,8.77]
[1724010473251,7.47041887,146.67,146.62,8.77]
[1724010473528,7.47041887,146.66,146.62,8.77]
[1724010473825,7.47041887,146.65,146.62,8.77]
[1724010474026,7.47041887,146.64,146.62,8.77]
[1724010474232,7.08748922,146.68,146.62,8.77]
[1724010474403,7.47025578,146.67,146.62,8.77]
[1724010474603,7.47025578,146.66,146.62,8.77]
[1724010474803,7.47025578,146.65,146.62,8.77]
[1724010475111,7.47025578,146.64,146.62,8.77]
[1724010475316,7.08748922,146.68,146.62,8.77]
[1724010475630,7.47053292,146.67,146.62,8.77]
[1724010475833,7.47053292,146.66,146.62,8.77]
[1724010476002,7.47053292,146.65,146.62,8.77]
[1724010476203,7.47053292,146.64,146.62,8.77]
[1724010476408,7.47053292,146.63,146.62,8.77]
[1724010476623,7.08748922,146.68,146.62,8.77]
[1724010476924,7.47046947,146.67,146.62,8.77]
[1724010477119,7.47046947,146.66,146.62,8.77]
[1724010477326,7.47046947,146.65,146.62,8.77]
[1724010477534,7.47046947,146.64,146.62,8.77]
[1724010477736,7.08748922,146.68,146.62,8.77]
[1724010477912,7.47034359,146.67,146.62,8.77]
[1724010478112,7.47034359,146.66,146.62,8.77]
[1724010478326,7.47034359,146.65,146.62,8.77]
[1724010478631,7.47034359,146.64,146.62,8.77]
[1724010478807,7.08748922,146.68,146.62,8.77]
[1724010479032,7.47024684,146.67,146.62,8.77]
[1724010479316,7.47024726,146.66,146.62,8.77]
[1724010479632,7.47024726,146.65,146.62,8.77]
[1724010479841,7.47024726,146.64,146.62,8.77]
[1724010480016,22.0023,146.69,146.62,8.77]
[1724010480215,7.47025537,146.68,146.62,8.77]
[1724010480426,7.08994967,146.7,146.66,8.77]
[1724010480427,7.47025537,146.67,146.66,8.77]
[1724010480900,7.46897188,146.67,146.66,8.77]
[1724010484161,7.08994967,146.7,146.66,8.77]
[1724010484312,7.46900423,146.69,146.66,8.77]
[1724010484522,7.46900423,146.68,146.66,8.77]
[1724010484719,7.46900423,146.67,146.66,8.77]
[1724010486037,7.46900423,146.67,146.6,15.765]
[1724010486249,7.46900423,146.66,146.61,20.0]
[1724010486413,7.08994967,146.7,146.61,20.0]
[1724010486414,7.08994967,146.7,146.62,8.77]
[1724010486617,7.46923619,146.69,146.63,20.0]
[1724010486846,7.46923619,146.68,146.63,20.0]
[1724010487146,7.46923619,146.67,146.63,20.0]
[1724010487316,7.46923619,146.66,146.63,20.0]
[1724010487519,7.08994967,146.7,146.63,20.0]
[1724010487719,7.46923396,146.69,146.63,20.0]
[1724010488045,7.46923396,146.68,146.63,20.0]
[1724010488269,7.46923843,146.67,146.64,8.77]
[1724010488422,7.46923843,146.66,146.64,8.77]
[1724010488622,7.08994967,146.7,146.64,8.77]
[1724010488850,7.46923172,146.69,146.64,8.77]
[1724010489144,7.46923172,146.68,146.64,8.77]
[1724010489347,7.46923172,146.67,146.64,8.77]
[1724010489547,7.46923172,146.66,146.64,8.77]
[1724010489716,7.46923172,146.65,146.64,8.77]
[1724010489912,7.08994967,146.7,146.64,8.77]
[1724010490141,7.46940479,146.69,146.63,20.0]
[1724010490342,7.46940479,146.68,146.6,15.765]
[1724010490548,7.46940479,146.67,146.61,8.77]
[1724010490847,7.46940479,146.66,146.61,8.77]
[1724010491141,7.46940479,146.65,146.61,8.77]
[1724010491316,7.46940479,146.64,146.61,8.77]
[1724010491521,7.46940479,146.63,146.61,8.77]
[1724010491721,29.92463527,146.68,146.61,8.77]
[1724010491921,7.47074739,146.67,146.61,8.77]
[1724010492137,29.92463527,146.68,146.61,8.77]
[1724010492138,7.47074739,146.66,146.61,8.77]
[1724010492351,7.47074739,146.65,146.61,8.77]
[1724010492537,7.4711933,146.64,146.61,8.77]
[1724010492739,7.4711933,146.63,146.61,8.77]
[1724010492939,29.92463527,146.68,146.61,8.77]
[1724010493158,7.47105209,146.67,146.61,8.77]
[1724010493363,7.47105209,146.66,146.61,8.77]
[1724010493541,7.47105209,146.65,146.57,8.77]
[1724010493864,7.47105209,146.64,146.56,16.3653]
[1724010494169,7.47105209,146.63,146.56,16.3653]
[1724010494330,7.47105209,146.62,146.56,25.1353]
[1724010494537,7.47105209,146.61,146.56,25.1353]
[1724010494844,7.47240351,146.6,146.56,25.1353]
[1724010495161,6.8191,146.65,146.56,25.1353]
[1724010495340,7.47260021,146.64,146.57,20.0]
[1724010495539,7.47260021,146.63,146.57,20.0]
[1724010495779,6.8191,146.65,146.57,20.0]
[1724010495780,7.47260021,146.62,146.57,20.0]
[1724010496060,7.47260021,146.61,146.57,20.0]
[1724010496257,6.8191,146.65,146.57,20.0]
[1724010496455,52.47259574,146.64,146.57,20.0]
[1724010496648,7.47213998,146.63,146.57,20.0]
[1724010496848,7.47213998,146.62,146.56,8.77]
[1724010497064,7.47213998,146.61,146.56,8.77]
[1724010497236,29.3728,146.63,146.56,8.77]
[1724010497438,52.47266294,146.62,146.56,8.77]
[1724010497636,7.47266294,146.61,146.56,8.77]
[1724010497833,7.47266294,146.61,146.54,8.77]
[1724010498045,7.47266294,146.6,146.54,8.77]
[1724010498249,51.8204,146.62,146.52,16.3653]
[1724010498462,7.47336392,146.61,146.54,8.77]
[1724010498660,7.47336392,146.6,146.54,8.77]
[1724010498861,7.47336392,146.59,146.54,8.77]
[1724010499064,7.47336392,146.58,146.54,8.77]
[1724010499363,6.8209,146.61,146.54,8.77]
[1724010499662,7.47432265,146.6,146.54,8.77]
[1724010499862,7.47432265,146.59,146.54,8.77]
[1724010500861,6.8208,146.61,146.54,8.77]
[1724010501059,52.47433725,146.6,146.54,8.77]
[1724010501260,7.47433725,146.59,146.53,8.77]
[1724010501457,51.8213,146.6,146.53,8.77]
[1724010501765,7.47440003,146.59,146.53,8.77]
[1724010501966,45.0,146.58,146.53,8.77]
[1724010502162,7.09531081,146.59,146.53,8.77]
[1724010502360,30.0,146.57,146.53,8.77]
[1724010502668,30.0,146.57,146.49,1.3648846]
[1724010502869,30.0,146.57,146.53,8.77]
[1724010505269,7.09531081,146.59,146.53,8.77]
[1724010512774,7.09531081,146.59,146.55,8.77]
[1724010514661,7.09531081,146.59,146.53,8.77]
[1724010520574,7.09531081,146.59,146.57,8.77]
[1724010520882,22.553,146.63,146.57,8.77]
[1724010521075,29.64695385,146.63,146.57,8.77]
[1724010522481,45.0,146.62,146.57,8.77]
[1724010526673,29.64695385,146.63,146.57,8.77]
[1724010527001,29.64695385,146.63,146.59,8.77]
[1724010527286,30.0,146.6,146.59,8.77]
[1724010527485,29.64695385,146.63,146.59,8.77]
[1724010530084,29.64695385,146.63,146.57,8.77]
[1724010533293,7.47282554,146.62,146.57,8.77]
[1724010533491,29.64695385,146.63,146.57,8.77]
[1724010533695,7.47282779,146.62,146.57,8.77]
[1724010533988,29.64695385,146.63,146.57,8.77]
[1724010534203,7.47282554,146.62,146.57,8.77]
[1724010534410,29.64695385,146.63,146.57,8.77]
[1724010534704,7.47282554,146.62,146.57,8.77]
[1724010534870,29.64695385,146.63,146.57,8.77]
[1724010535206,7.47277696,146.62,146.57,8.77]
[1724010535388,7.47277696,146.61,146.57,8.77]
[1724010535586,7.47277696,146.6,146.57,8.77]
[1724010535894,29.64695385,146.63,146.57,8.77]
[1724010536066,52.47336169,146.62,146.55,8.77]
[1724010536268,7.47336169,146.61,146.55,8.77]
[1724010536583,7.47336169,146.6,146.55,8.77]
[1724010536788,37.47336169,146.59,146.55,8.77]
[1724010537088,30.0,146.59,146.55,8.77]
[1724010537401,7.473828,146.58,146.52,24.4028]
[1724010537568,30.0,146.59,146.52,24.4028]
[1724010537569,7.473828,146.57,146.52,24.4028]
[1724010537769,30.0,146.59,146.52,24.4028]
[1724010537770,7.473828,146.56,146.52,24.4028]
[1724010538085,7.47584175,146.55,146.49,6.5536]
[1724010538292,7.47583774,146.54,146.51,8.77]
[1724010538614,30.0,146.59,146.51,8.77]
[1724010538769,52.47592105,146.58,146.51,8.77]
[1724010538970,7.47592105,146.57,146.51,8.77]
[1724010539277,7.47592105,146.56,146.51,8.77]
[1724010539598,7.47592105,146.55,146.51,8.77]
[1724010539764,7.47592105,146.54,146.51,8.77]
[1724010539967,45.0,146.58,146.51,8.77]
[1724010540167,7.4761554,146.57,146.51,8.77]
[1724010540367,45.0,146.58,146.51,8.77]
[1724010540368,7.4761554,146.56,146.51,8.77]
[1724010540667,7.4761554,146.55,146.51,8.77]
[1724010540995,7.4761554,146.54,146.51,8.77]
[1724010541290,45.0,146.58,146.51,8.77]
[1724010541489,7.47620458,146.57,146.51,8.77]
[1724010541796,7.47620458,146.56,146.51,8.77]
[1724010541995,7.47620458,146.55,146.51,8.77]
[1724010542287,45.0,146.58,146.51,8.77]
[1724010542288,7.47620458,146.54,146.51,8.77]
[1724010542496,45.0,146.58,146.51,8.77]
[1724010542674,7.47623169,146.57,146.51,8.77]
[1724010542875,7.47623169,146.56,146.51,8.77]
[1724010543192,7.47623169,146.55,146.49,6.5536]
[1724010543497,7.47623169,146.54,146.51,8.77]
[1724010543694,45.0,146.58,146.51,8.77]
[1724010543904,7.47643867,146.57,146.51,8.77]
[1724010544083,7.47643867,146.56,146.51,8.77]
[1724010544280,7.47643867,146.55,146.51,8.77]
[1724010544496,7.47643867,146.54,146.51,8.77]
[1724010544701,45.0,146.58,146.51,8.77]
[1724010544901,7.47587484,146.57,146.51,8.77]
[1724010545203,7.47587484,146.56,146.51,8.77]
[1724010545497,7.47587484,146.55,146.51,8.77]
[1724010545674,7.47587484,146.54,146.51,8.77]
[1724010545879,45.0,146.58,146.51,8.77]
[1724010546085,7.47587454,146.57,146.51,8.77]
[1724010546282,7.47587454,146.56,146.51,8.77]
[1724010546491,7.47587454,146.55,146.51,8.77]
[1724010546689,52.09442072,146.58,146.51,8.77]
[1724010546901,7.47588169,146.57,146.51,8.77]
[1724010547207,7.47588169,146.56,146.51,8.77]
[1724010547495,7.47588169,146.55,146.51,8.77]
[1724010547734,52.09442072,146.58,146.51,8.77]
[1724010547900,7.47588169,146.57,146.51,8.77]
[1724010548096,52.47588169,146.56,146.51,8.77]
[1724010548288,7.47588169,146.55,146.51,8.77]
[1724010549702,7.47588169,146.55,146.49,8.77]
[1724010550106,7.47588169,146.54,146.49,8.77]
[1724010550280,7.47588169,146.53,146.45,6.5536]
[1724010550603,7.47588169,146.52,146.48,8.77]
[1724010550812,7.47588169,146.51,146.48,8.77]
[1724010551005,7.47588169,146.5,146.48,8.77]
[1724010551188,6.8243,146.54,146.48,8.77]
[1724010551394,52.47847623,146.53,146.48,8.77]
[1724010551587,7.47847623,146.52,146.48,8.77]
[1724010551889,45.0,146.53,146.48,8.77]
[1724010551890,7.47830882,146.51,146.48,8.77]
[1724010552089,45.0,146.53,146.48,8.77]
[1724010552292,7.47826283,146.52,146.48,8.77]
[1724010552495,7.47826283,146.51,146.48,8.77]
[1724010552803,45.0,146.53,146.48,8.77]
[1724010553102,7.4783037,146.52,146.48,8.77]
[1724010553306,7.4783037,146.51,146.45,6.5536]
[1724010553483,45.0,146.53,146.47,8.77]
[1724010553683,7.47831044,146.52,146.47,8.77]
[1724010553884,7.47831044,146.51,146.47,8.77]
[1724010554110,45.0,146.54,146.47,8.77]
[1724010554405,7.47822723,146.53,146.47,8.77]
[1724010554586,7.47822723,146.52,146.47,8.77]
[1724010554795,45.0,146.54,146.47,8.77]
[1724010555088,7.47821927,146.53,146.49,8.77]
[1724010555283,7.47821927,146.52,146.49,8.77]
[1724010555483,45.0,146.54,146.49,8.77]
[1724010555706,7.47821577,146.53,146.49,8.77]
[1724010555999,45.0,146.54,146.49,8.77]
[1724010556199,7.47787072,146.53,146.49,8.77]
[1724010556400,45.0,146.54,146.49,8.77]
[1724010556600,7.47783051,146.53,146.49,8.77]
[1724010556806,45.0,146.54,146.49,8.77]
[1724010557002,7.4777841,146.53,146.49,8.77]
[1724010557215,7.13137501,146.54,146.51,8.77]
[1724010557591,30.0,146.52,146.51,8.77]
[1724010559115,7.13137501,146.54,146.51,8.77]
[1724010559592,7.13137501,146.54,146.49,8.77]
[1724010566783,45.0,146.53,146.49,8.77]
[1724010567005,7.13137501,146.54,146.49,8.77]
[1724010568819,7.13137501,146.54,146.45,6.5536]
[1724010568820,7.13137501,146.54,146.51,8.77]
[1724010569005,30.0,146.52,146.51,8.77]
[1724010569738,7.12822338,146.57,146.51,8.77]
[1724010570311,45.0,146.56,146.51,8.77]
[1724010574849,7.12822338,146.57,146.51,8.77]
[1724010575141,7.12822338,146.57,146.53,8.77]
[1724010575323,28.354,146.62,146.55,8.77]
[1724010575532,7.12329037,146.6,146.55,8.77]
[1724010575860,7.47425744,146.59,146.55,8.77]
[1724010576012,7.12329037,146.6,146.55,8.77]
[1724010576209,14.29653167,146.59,146.52,8.77]
[1724010576417,7.47481581,146.58,146.52,8.77]
[1724010576615,13.94469037,146.6,146.52,8.77]
[1724010576916,52.47484702,146.59,146.52,8.77]
[1724010577134,7.47484702,146.58,146.52,8.77]
[1724010578719,7.47484702,146.58,146.54,8.77]
[1724010578928,7.47489478,146.57,146.54,8.77]
[1724010579137,13.94449037,146.6,146.54,8.77]
[1724010579320,7.47490462,146.59,146.54,8.77]
[1724010579523,7.47490462,146.58,146.54,8.77]
[1724010579742,7.47490462,146.57,146.54,8.77]
[1724010579923,13.94449037,146.6,146.54,8.77]
[1724010580125,52.47482764,146.59,146.54,8.77]
[1724010580319,7.47482764,146.58,146.54,8.77]
[1724010580516,7.47482764,146.57,146.54,8.77]
[1724010580848,7.12329037,146.6,146.54,8.77]
[1724010581219,7.47439533,146.59,146.54,8.77]
[1724010581419,7.47439533,146.58,146.54,8.77]
[1724010581619,7.12329037,146.6,146.54,8.77]
[1724010581920,7.47439553,146.59,146.54,8.77]
[1724010582122,7.47439553,146.58,146.54,8.77]
[1724010582323,7.12329037,146.6,146.54,8.77]
[1724010582528,7.47444413,146.59,146.54,8.77]
[1724010582833,7.47444413,146.58,146.54,8.77]
[1724010583145,7.12329037,146.6,146.54,8.77]
[1724010583336,7.47439553,146.59,146.54,8.77]
[1724010583520,7.47439553,146.58,146.54,8.77]
[1724010583723,7.12329037,146.6,146.54,8.77]
[1724010583923,7.47434693,146.59,146.54,8.77]
[1724010584155,7.47434693,146.58,146.54,8.77]
[1724010584324,7.12329037,146.6,146.54,8.77]
[1724010584527,7.47434657,146.59,146.54,8.77]
[1724010584721,7.47434657,146.58,146.54,8.77]
[1724010584958,7.12329037,146.6,146.54,8.77]
[1724010585149,7.47439104,146.59,146.54,8.77]
[1724010585326,7.47439104,146.58,146.54,8.77]
[1724010585530,7.12329037,146.6,146.54,8.77]
[1724010585828,7.47439553,146.59,146.54,8.77]
[1724010586041,7.47439553,146.58,146.54,8.77]
[1724010586352,7.12329037,146.6,146.54,8.77]
[1724010586539,7.47439104,146.59,146.54,8.77]
[1724010586723,7.47439104,146.58,146.54,8.77]
[1724010586925,7.12329037,146.6,146.54,8.77]
[1724010587124,7.47439553,146.59,146.54,8.77]
[1724010587350,7.47439553,146.58,146.54,8.77]
[1724010587628,7.12329037,146.6,146.54,8.77]
[1724010587844,7.47399544,146.59,146.54,8.77]
[1724010588160,7.47399544,146.58,146.54,8.77]
[1724010588341,7.12329037,146.6,146.54,8.77]
[1724010588528,7.47439104,146.59,146.54,8.77]
[1724010588853,7.47439104,146.58,146.54,8.77]
[1724010589185,7.12329037,146.6,146.54,8.77]
[1724010589357,7.47439104,146.59,146.54,8.77]
[1724010589556,7.12329037,146.6,146.54,8.77]
[1724010589760,7.47439329,146.58,146.54,8.77]
[1724010592048,7.47439329,146.58,146.52,8.77]
[1724010593459,7.47439329,146.58,146.51,15.3669]
[1724010593460,52.47497891,146.57,146.51,15.3669]
[1724010593638,7.47497891,146.56,146.51,24.1369]
[1724010595065,30.0,146.55,146.51,24.1369]
[1724010595935,52.12398312,146.57,146.51,24.1369]
[1724010596132,7.47556569,146.56,146.51,24.1369]
[1724010596443,7.47556569,146.55,146.51,24.1369]
[1724010596737,52.12398312,146.57,146.51,24.1369]
[1724010596955,7.47542178,146.56,146.51,24.1369]
[1724010597160,7.12398312,146.57,146.51,24.1369]
[1724010597345,7.47542178,146.56,146.51,24.1369]
[1724010597546,7.47542178,146.55,146.51,24.1369]
[1724010597753,19.17966869,146.58,146.51,24.1369]
[1724010598057,7.47542627,146.57,146.51,24.1369]
[1724010598252,7.47542627,146.56,146.51,24.1369]
[1724010598452,7.47542627,146.55,146.51,24.1369]
[1724010598668,19.17966869,146.58,146.51,24.1369]
[1724010598839,7.4753223,146.57,146.51,24.1369]
[1724010599171,7.4753223,146.56,146.51,24.1369]
[1724010599338,7.4753223,146.55,146.51,24.1369]
[1724010599540,19.17966869,146.58,146.51,24.1369]
[1724010599839,7.47537092,146.57,146.51,24.1369]
[1724010600047,7.47537092,146.56,146.51,24.1369]
[1724010600263,7.47537092,146.55,146.51,24.1369]
[1724010600446,11.70519568,146.58,146.51,24.1369]
[1724010600757,7.47542619,146.57,146.51,24.1369]
[1724010600936,7.47542619,146.56,146.51,24.1369]
[1724010601138,7.47542619,146.55,146.51,24.1369]
[1724010601354,11.70519568,146.57,146.51,24.1369]
[1724010601561,7.47542619,146.56,146.51,15.3669]
[1724010601854,7.47542437,146.55,146.52,8.77]
[1724010602060,11.70527947,146.58,146.52,8.77]
[1724010602362,19.1806548,146.57,146.52,8.77]
[1724010602563,7.47537533,146.56,146.52,8.77]
[1724010602869,18.82889931,146.59,146.54,8.77]
[1724010603162,7.47420282,146.58,146.54,8.77]
[1724010603365,7.47420282,146.57,146.54,8.77]
[1724010603560,11.70527947,146.61,146.54,8.77]
[1724010603857,19.17922716,146.6,146.54,8.77]
[1724010604031,7.47392682,146.59,146.54,8.77]
[1724010604244,7.47392682,146.58,146.54,8.77]
[1724010604557,11.70293229,146.6,146.54,8.77]
[1724010604760,7.47390825,146.59,146.54,8.77]
[1724010604960,7.47390825,146.58,146.54,8.77]
[1724010605144,11.70293229,146.6,146.54,8.77]
[1724010605347,7.47391358,146.59,146.54,8.77]
[1724010605547,7.47391358,146.58,146.54,8.77]
[1724010605766,7.47391358,146.57,146.54,8.77]
[1724010605971,11.70293229,146.6,146.54,8.77]
[1724010606170,7.47396207,146.59,146.54,8.77]
[1724010606389,7.47396431,146.58,146.54,8.77]
[1724010606576,7.47396431,146.57,146.54,8.77]
[1724010606876,11.70299104,146.6,146.54,8.77]
[1724010607072,7.47396207,146.59,146.54,8.77]
[1724010607247,7.47396207,146.58,146.54,8.77]
[1724010607455,7.47396207,146.57,146.54,8.77]
[1724010607654,11.70299104,146.6,146.54,8.77]
[1724010607856,7.4739202,146.59,146.54,8.77]
[1724010608057,7.4739202,146.58,146.54,8.77]
[1724010608259,7.4739202,146.57,146.54,8.77]
[1724010608461,11.70292191,146.6,146.54,8.77]
[1724010608654,7.47396207,146.59,146.54,8.77]
[1724010608869,7.47396207,146.58,146.54,8.77]
[1724010609051,7.47396207,146.57,146.54,8.77]
[1724010609254,11.70292191,146.59,146.54,8.77]
[1724010609481,7.4739688,146.58,146.54,8.77]
[1724010609680,7.4739688,146.57,146.54,8.77]
[1724010609867,13.94491203,146.61,146.54,8.77]
[1724010609868,11.70292191,146.6,146.54,8.77]
[1724010610162,19.17688398,146.59,146.54,8.77]
[1724010610365,7.47396207,146.58,146.56,8.77]
[1724010610563,6.8199,146.63,146.56,8.77]
[1724010610865,19.17605566,146.62,146.56,8.77]
[1724010611067,19.17605566,146.61,146.56,8.77]
[1724010611263,7.47313375,146.6,146.56,8.77]
[1724010611576,19.17605566,146.59,146.54,8.77]
[1724010611762,7.47313375,146.58,146.54,8.77]
[1724010612082,7.47313375,146.57,146.54,8.77]
[1724010612375,11.70292191,146.59,146.54,8.77]
[1724010612580,19.17724473,146.58,146.54,8.77]
[1724010612770,7.47432282,146.57,146.54,8.77]
[1724010612981,6.8203,146.62,146.54,8.77]
[1724010613165,64.17776006,146.61,146.54,8.77]
[1724010613469,19.17776006,146.6,146.54,8.77]
[1724010613663,19.17776006,146.59,146.54,8.77]
[1724010613965,19.17776006,146.58,146.54,8.77]
[1724010614172,7.47427775,146.57,146.54,8.77]
[1724010614477,11.70289051,146.59,146.56,8.77]
[1724010614776,19.17667016,146.58,146.56,8.77]
[1724010615076,7.47377965,146.57,146.56,8.77]
[1724010620083,7.47377965,146.57,146.52,6.4854]
[1724010620297,19.17741632,146.56,146.52,15.2554]
[1724010620499,7.47377965,146.55,146.52,15.2554]